Cogmind - Beta 15 X1 @@@ ROGUE MODE // 2024.11.16 @ 14:51:03 Player: H3-RMN Result: Destroyed self with Mini Grenade Launcher Performance ------------- Evolutions (0) 0 Regions Visited (2) 400 Robots Destroyed (25) 125 Value Destroyed (501) 501 Prototype IDs (0) 0 Alien Tech Used (0) 0 Bonus (0) 0 TOTAL SCORE: 1026 Bonus ------- None Cogmind --------- Core Integrity 0/250 Matter 211/300 Energy 158/200 System Corruption 0% Temperature Cool (6) Movement Treading (320) Ox2 Location -10/Subcaves Parts ------- > --- POWER (1) -------- Subdweller Power Source > --- PROPULSION (2) --- Light Treads Subdweller Monowheel > --- UTILITY (2) ------ High-capacity Storage Unit Subdweller Optics > --- WEAPON (2) ------- Subdweller Laser Mini Grenade Launcher > --- INVENTORY (20) --- Subdweller Power Source Wheel Subdweller Monowheel Subdweller Monowheel Subdweller Monowheel Huge Storage Unit Improved Terrain Scanner Medium Armor Plating Medium Armor Plating Medium Armor Plating Subdweller Laser Subdweller Beam Cannon Subdweller Beam Cannon Assault Rifle Light Assault Rifle Barrage Gun Battle Cannon EMP Blaster Subdweller Shrapnel Launcher Peak State ------------ > --- POWER ------------ Subdweller Power Source > --- PROPULSION ------- Light Treads Subdweller Monowheel > --- UTILITY ---------- High-capacity Storage Unit Improved Terrain Scanner > --- WEAPON ----------- Subdweller Laser Barrage Gun > --- INVENTORY -------- Subdweller Power Source Light Treads Light Treads Wheel Subdweller Monowheel Subdweller Monowheel Huge Storage Unit Subdweller Optics Medium Armor Plating Medium Armor Plating Medium Armor Plating Subdweller Laser Subdweller Beam Cannon Subdweller Beam Cannon Assault Rifle Light Assault Rifle EMP Blaster Mini Grenade Launcher Subdweller Shrapnel Launcher Mining Laser [Rating: 17] Favorites ----------- Power Subdweller Power Source Engine Subdweller Power Source Propulsion Light Treads Treads Light Treads Wheel Subdweller Monowheel Utility High-capacity Storage Unit Device Improved Terrain Scanner Storage High-capacity Storage Unit Protection Medium Armor Plating Weapon Subdweller Beam Cannon Energy Gun Subdweller Laser Energy Cannon Subdweller Beam Cannon Ballistic Gun Barrage Gun Ballistic Cannon Battle Cannon Launcher Mini Grenade Launcher Special Weapon Mining Laser Build | -11 -10 -10 ------- Run | Yrd Mat Sub Slots Evolved . | . . . Power . | . . . Propulsion . | . . . Utility . | . . . Weapon . | . . . Parts Attached 36 | 8 8 20 Power 4 | 1 . 3 Engine 4 | 1 . 3 Core . | . . . Reactor . | . . . Propulsion 11 | 3 2 6 Treads 3 | 1 1 1 Leg . | . . . Wheel 8 | 2 1 5 Hover . | . . . Flight . | . . . Utility 8 | 2 4 2 Device 3 | 1 1 1 Storage 2 | 1 1 . Processor . | . . . Hackware . | . . . Protection 3 | . 2 1 Artifact . | . . . Weapon 13 | 2 2 9 Energy Gun 4 | 1 1 2 Energy Cannon 2 | . . 2 Ballistic Gun 3 | 1 . 2 Ballistic Cannon 1 | . . 1 Launcher 2 | . 1 1 Special Weapon 1 | . . 1 Impact Weapon . | . . . Slashing Weapon . | . . . Piercing Weapon . | . . . Special Melee Weapon . | . . . Unidentified Prototypes . | . . . Parts Lost 5 | . 1 4 Power 2 | . . 2 Propulsion 2 | . 1 1 Utility . | . . . Weapon 1 | . . 1 Highest Loss Streak 2 | . 1 2 To Critical Strikes . | . . . Average Backups 17 | 3 11 19 Power . | . . . Propulsion 4 | 2 2 4 Utility 4 | . 2 4 Weapon 8 | . 6 8 Tool/Special . | . . . Unused Backups 12 | . 3 9 Power 1 | . 1 . Propulsion 1 | . 1 . Utility 3 | . . 3 Weapon 7 | . 1 6 Tool/Special . | . . . Average Slot Usage (%) 99 | . 99 99 Engine 13 | . 14 13 Treads 14 | . 18 14 Wheel 13 | . 9 13 Device 11 | . 4 12 Storage 14 | . 14 14 Protection 2 | . 9 1 Energy Gun 11 | . 27 8 Energy Cannon 11 | . . 13 Ballistic Gun 3 | . . 3 Ballistic Cannon 1 | . . 1 Peak Build Rating 17 | 9 10 17 Average Rating 14 | 6 9 15 On Entrance 6 | . 9 10 Naked Turns . | . . . Heaviest Build 68 | 15 56 68 Greatest Support 40 | 26 40 40 Greatest Overweight (x) 5 | 1 5 5 Average Overweight (x) 2 | . 2 2 Largest Inventory Capacity 20 | 8 20 20 Average Capacity 18 | 7 13 20 Most Carried 20 | 7 16 20 Average Carried 17 | 4 10 19 Final Capacity 20 | 8 20 20 Final Carried 19 | 7 16 19 Class Distribution -------------------- 60% | Mutant 39% | Scavenger-Mutant Dominant Class ---------------- Mutant | -10/Materials Mutant | -10/Subcaves Resources | -11 -10 -10 ----------- Run | Yrd Mat Sub Matter Collected 798 | 319 74 405 Remotely . | . . . Salvage Created 688 | 173 228 287 Parts 58 | 12 22 24 Haulers Intercepted 1 | . 1 . Recyclers Shooed . | . . . Parts Field Recycled . | . . . Retrieved Matter . | . . . Parts Self-Destructed 23 | . . 23 Prevented . | . . . Kills | -11 -10 -10 ------- Run | Yrd Mat Sub Combat Hostiles Destroyed 15 | . 5 10 Guns 3 | . 2 1 Cannons 3 | . . 3 AOE 9 | . 3 6 Classes Destroyed 8 | 2 5 1 Builder 1 | . 1 . Tunneler 5 | 5 . . Hauler 1 | . 1 . Recycler 1 | 1 . . Watcher 2 | . 2 . Swarmer 6 | . 3 3 Grunt 2 | . 2 . Subdweller 7 | . . 7 Best Kill Streak 6 | 6 5 6 Combat Bots Only 6 | . 3 6 Max Kills in Single Turn 3 | 1 3 2 Gunslinging . | . . . Exploded 2 | . 2 2 Melee . | . . . Uniques/NPCs Destroyed . | . . . Combat | -11 -10 -10 -------- Run | Yrd Mat Sub Hostile Shots Fired 58 | . 21 37 Missed 8 | . 2 6 Damage Taken 1171 | . 287 884 Core 298 | . 91 207 Absorbed by Shields . | . . . Core Remaining (%) 100 | 100 . . Volleys Fired 91 | 13 13 65 Largest 2 | 2 2 2 Hottest 160 | 60 80 160 Shots Fired 129 | 16 24 89 Gun 70 | 16 22 32 Cannon 36 | . . 36 Launcher 21 | . 2 19 Special 2 | . . 2 Kinetic 24 | 13 . 11 Thermal 59 | . . 59 Explosive 15 | . 2 13 Electromagnetic 31 | 3 22 6 Robot Hit Streak 31 | 3 7 31 Robot Miss Streak 3 | 3 1 2 Penetration Max . | . . . Secondary Targets . | . . . Shots Hit Robots 55 | 8 15 32 Core Hits 34 | 6 13 15 Critical Kills . | . . . Critical Parts Destroyed . | . . . Critical Strikes 1 | . . 1 Blast 1 | . . 1 Melee Attacks . | . . . Impact . | . . . Slashing . | . . . Piercing . | . . . Sneak Attacks . | . . . Combat Hostiles . | . . . Follow-up Attacks . | . . . Damage Inflicted 1668 | 109 448 1111 Guns 541 | 109 205 227 Cannons 388 | . . 388 Explosions 739 | . 243 496 Melee . | . . . Ramming . | . . . Kinetic 236 | 81 . 155 Thermal 460 | . . 460 Explosive 739 | . 243 496 Electromagnetic 233 | 28 205 . Impact . | . . . Slashing . | . . . Piercing . | . . . Highest Corruption . | . . . Average Corruption . | . . . Corruption Purged . | . . . Corruption Blocked . | . . . Overload Shots . | . . . Overflow Damage 5 | . . 5 Projectiles . | . . . Explosions 5 | . . 5 Melee . | . . . Knockbacks 1 | . . 1 Impact . | . . . Kinetic 1 | . . 1 Secondary . | . . . Self-Inflicted Damage 169 | . 25 144 Shots 6 | . 1 5 Rammed . | . . . Targets Rammed . | . . . Kicked . | . . . Crushed . | . . . Highest Temperature 275 | 10 214 275 Average Temperature 74 | 10 109 53 Received Heat Transfer 583 | . 117 466 Effects 2 | . . 2 Interference 2 | . . 2 Siege Activations . | . . . Martial Activations . | . . . Shielding Activations . | . . . Robots Disrupted . | . . . Combat Hostiles . | . . . Robots Corrupted . | . . . Combat Hostiles . | . . . Parts Fried 1 | . 1 . Impact Corruptions . | . . . Robots Melted . | . . . Combat Hostiles . | . . . Parts Melted 2 | . . 2 Heat Transferred 583 | . . 583 Parts Sabotaged . | . . . Parts Stolen . | . . . Parts Stripped . | . . . Power Chain Reactions . | . . . Alert | -11 -10 -10 ------- Run | Yrd Mat Sub Maximum Alert Level . | . . . Low Security (%) 100 | 100 100 . Level 1 . | . . . Level 2 . | . . . Level 3 . | . . . Level 4 . | . . . Level 5 . | . . . High Security . | . . . Max Security . | . . . Peak Influence 98 | 20 98 . Initial . | . . . Average 19 | 4 22 . Influence Increases 268 | 30 168 70 Destroy 0b10 Robot/C 160 | . 100 60 Destroy 0b10 Robot/NC 50 | 30 20 . Destroy Leader 36 | . 26 10 Successful Hack 6 | . 6 . Destroy Structure 16 | . 16 . Influence Decreases 264 | 30 160 74 Time Decay 244 | 30 150 64 Lost Part 20 | . 10 10 Squads Dispatched . | . . . Investigation . | . . . Extermination . | . . . Reinforcement . | . . . Assault . | . . . Garrison . | . . . Intercept . | . . . Searches Triggered . | . . . Construction Impeded . | . . . Haulers Reinforced . | . . . Active Scanning Responses . | . . . Cargo Convoy Interrupts . | . . . Stealth | -11 -10 -10 --------- Run | Yrd Mat Sub Distress Signals 1 | . 1 . Communications Jammed . | . . . Distress Signals . | . . . Times Spotted 19 | . 6 13 Peak Tracking Total 5 | . 4 5 Tactical Retreats . | . . . Traps | -11 -10 -10 ------- Run | Yrd Mat Sub Traps Triggered 3 | . 1 2 Indirectly . | . . . Trap Hack Attempts . | . . . Triggered . | . . . Disarmed . | . . . Reprogrammed . | . . . Reused . | . . . Traps Extracted . | . . . Installed . | . . . Triggered . | . . . Machines | -11 -10 -10 ---------- Run | Yrd Mat Sub Machines Disabled . | . . . Max in Single Turn . | . . . Machines Repaired . | . . . Machines Dismantled . | . . . Machines Sabotaged . | . . . Overloaded Fab Kills . | . . . Hacking | -11 -10 -10 --------- Run | Yrd Mat Sub Machines Accessed 1 | . 1 . Terminals 1 | . 1 . Fabricators . | . . . Repair Stations . | . . . Recycling Units . | . . . Scanalyzers . | . . . Garrison Access . | . . . Total Hacks 2 | . 2 . Successful 1 | . 1 . Failed 1 | . 1 . Catastrophic . | . . . Database Lockouts . | . . . Manual 2 | . 2 . Terminals 2 | . 2 . Fabricators . | . . . Repair Stations . | . . . Recycling Units . | . . . Scanalyzers . | . . . Garrison Access . | . . . Terminal Hacks 1 | . 1 . Robot Analysis 1 | . 1 . Fabricator Hacks . | . . . Repair Station Hacks . | . . . Recycling Unit Hacks . | . . . Scanalyzer . | . . . Garrison Access Hacks . | . . . Unauthorized Hacks . | . . . Terminals . | . . . Fabricators . | . . . Repair Stations . | . . . Recycling Units . | . . . Scanalyzers . | . . . Garrison Access . | . . . Data Cores Recovered . | . . . Used . | . . . Hacking Detections 1 | . 1 . Full Trace Events . | . . . Feedback Events . | . . . Feedback Blocked . | . . . Robot Schematics Acquired . | . . . Robots Built . | . . . Authchips . | . . . Time . | . . . Total Robot Build Rating . | . . . Part Schematics Acquired . | . . . Parts Built . | . . . Authchips . | . . . Time . | . . . Total Part Build Rating . | . . . Parts Repaired . | . . . Time . | . . . Parts Recycled . | . . . Recycled Matter . | . . . Retrieved Matter . | . . . Retrieved Components . | . . . Parts Scanalyzed . | . . . Part Schematics Acquired . | . . . Parts Damaged . | . . . Bothacking | -11 -10 -10 ------------ Run | Yrd Mat Sub Used RIF Installer . | . . . Robots Hacked . | . . . Non-combat . | . . . Combat . | . . . Robot Hacks Applied . | . . . Relay Couplers Released . | . . . Fabnet Peak Effective % . | . . . Robots Rewired . | . . . Allies Hacked . | . . . Hacks Repelled . | . . . Allies | -11 -10 -10 -------- Run | Yrd Mat Sub Total Allies . | . . . Largest Group . | . . . Highest-Rated Group . | . . . Highest-Rated Ally . | . . . Total Orders . | . . . Ally Attacks . | . . . Total Damage . | . . . Kills . | . . . Allies Corrupted . | . . . Allies Melted . | . . . Intel | -11 -10 -10 ------- Run | Yrd Mat Sub Active Infowar (turns) 2952 | 40 86 2826 Optics 37 | . . 37 Terrain 2915 | 40 86 2789 Robot Analysis Total 1 | . 1 . Derelict Logs Recovered . | . . . Drone Launches . | . . . Drone Recoveries . | . . . Exploration | -11 -10 -10 ------------- Run | Yrd Mat Sub Turns Passed 3874 | 119 531 3224 Spaces Moved 1377 | 56 247 1074 Core 2 | 2 . . Treads 104 | . 98 6 Legs . | . . . Wheels 1271 | 54 149 1068 Hover . | . . . Flight . | . . . Fastest Speed 50 | 50 95 130 Average Speed 135 | 89 143 135 Slowest Speed 240 | 100 160 240 Overloaded Moves . | . . . Propulsion Burnouts . | . . . Robots Hopped . | . . . Cave-ins Triggered . | . . . Exploration Rate (%) 32 | 4 39 55 Regions Visited 2 Branch Regions 1 Pre-discovered Areas . | . . . Known Exits Taken . | . . . Unknown Exits Taken 2 | 1 1 . Scrap Searched 5 | . . 5 Spaces Dug 43 | . 18 25 Terrain Destroyed 110 | . 18 92 Melee . | . . . Projectile 15 | . . 15 AOE 95 | . 18 77 Terrain Rammed . | . . . Walls Destroyed . | . . . Machines Disabled . | . . . Actions | -11 -10 -10 --------- Run | Yrd Mat Sub Total 3243 | 105 399 2739 Wait 1675 | 21 109 1545 Move 1375 | 55 246 1074 Hop . | . . . Pick Up 36 | 8 14 14 Fast Attach 10 | 6 2 2 Attach 6 | 1 1 4 Detach . | . . . Swap 30 | 1 6 23 Drop 20 | . 8 12 Fire 91 | 13 13 65 Melee . | . . . Ram . | . . . Kick . | . . . Crush . | . . . Escape Stasis . | . . . Rewire . | . . . Trap . | . . . Miscellaneous . | . . . Route ------- -11/Scrapyard -10/Materials (discovered 3 exits: [*Mat] / [*Min] / [*Sub]) -10/Subcaves (discovered 3 exits: [*Mat x2] / [*Scr]) History --------- Turn | Location | Event 15 | -11/Scrapyard | Discovered new exit (range 14) 120 | -11/Scrapyard | Entered Materials 164 | -10/Materials | Discovered new exit (range 5) 308 | -10/Materials | Build established: Mutant 384 | -10/Materials | Discovered new exit (range 14) 623 | -10/Materials | Discovered new exit (range 9) 651 | -10/Materials | Entered Subcaves 652 | -10/Subcaves | Approached by a straggling Scientist 719 | -10/Subcaves | Ambushed by Subdweller buried in earth 786 | -10/Subcaves | Scientist uncovered a shortcut to Scraptown 1086 | -10/Subcaves | Core integrity fell below 50% 1094 | -10/Subcaves | Discovered new exit (range 12) 1162 | -10/Subcaves | Build established: Scavenger-Mutant 1273 | -10/Subcaves | Shifting Twisted Machinery released Sub. Laser 2669 | -10/Subcaves | Build established: Mutant 3731 | -10/Subcaves | A swath of the cavern ceiling suddenly collapsed 3788 | -10/Subcaves | Discovered new exit (range 10) 3821 | -10/Subcaves | Core integrity fell below 20% 3871 | -10/Subcaves | A Subdweller sparked back to life 3871 | -10/Subcaves | A Subdweller sparked back to life 3875 | -10/Subcaves | Destroyed self with Mini Grenade Launcher Last Messages --------------- 03825_ K2-10P(R) destroyed. 03826_ VN-O08(u) builds Twisted Machinery. 03829_ Sub. Power Source destroyed. 03829_ VN-O08(u) tweaks Twisted Machinery. 03834_ 4Z-AUA(R) affixes Scrap Shield Fragment to Scrap Shield. 03835_ 4Z-AUA(R) destroyed. 03838_ VN-O08(u) tweaks Twisted Machinery. 03840_ Acquired 28 matter. 03842_ Acquired 50 matter. 03845_ Acquired 5 matter. 03848_ Subatomizers dissect the Sub. Power Source. 03848_ VN-O08(u) tweaks Twisted Machinery. 03849_ Dropped Lgt. Treads. 03850_ Acquired Sub. Monowheel. 03854_ Acquired Sub. Power Source. 03862_ Acquired 52 matter. 03864_ Acquired 30 matter. 03866_ Acquired 15 matter. 03871_ ZB-504(R) creaks and sparks as it begins to move. 03871_ 31-EOR(R) creaks and sparks as it begins to move. Map ----- +----------------------------------------------------+ | ????????????????#?##?###########"" #??????????? | | ????????????#???##"###### ##""""" #??????????? | | ????????##??????#"##"##"##"""""" ##?##???????? | | ????????????????##""# "##"""" ####??????#???? | | ????????????#???####"#"#"#"#" # ##????????????? | | ????????????????###""####"## ## ###??????????? | | ??????????????????##""#?#"" #### #??????????? | | ????????????? ????###### ##?## #??????????? | | ??????????#??????#??###" ##### #??????????? | | ????????????????????##" """ #?## ##?????????? | | ???????????????????## """"" # # ###?# #?????????? | | ??????????#??"?????# ""#" ""### #??####?????????? | | ??????????#????????#"" """"#???"##?????#????????? | | ???????????????????# !="###???""? ?????????????? | | ???????????????????# #!=####????#?? ?##????????? | | ???????????????????# """ *####### #?????????? | | ???????????????????# """! #%"" #??????????? | | ???????????????#???## """## """"""" ##?????????? | | ????????????????????# """"" " #"## ?????????????? | | ????????????????#???# % !###???????#????????? | | ???????????????????# ## ##????????????????? | | ????????????? ????# #?# #????????????????? | | ???????????????#??# ### ## ##????????????????? | | ????????????????? ### ### #???#?????????????? | | ??????????????? ##?## # # #????????????????? | | ??????????????? ???# @ #????????????????? | | ??????????????####?## R< #????????????????? | | ?????????????????# < RR ##### #????????????????? | | ????????????????## #????##????????????????? | | ?????????????????# ##??????#???????????????? | | ?????????????????# ?#??????????????????????? | | ?????????????????# # ????????????????????????? | | ?????????????????########????????????????????????? | | ?????????????????????????????????????????????????? | | ?????????????????????????????????????????????????? | | ?????????????????????????????????????????????????? | | ?????????????????????????????????????????????????? | | ?????????????????????????????????????????????????? | | ?????????????????????????????????????????????????? | | ?????????????????????????????????????????????????? | | ?????????????????????????????????????????????????? | | ?????????????????????????????????????????????????? | | ?????????????????????????????????????????????????? | | ?????????????????????????????????????????????????? | | ?????????????????????????????????????????????????? | | | | | | | | | | | +----------------------------------------------------+ Best States ------------- Heat Dissipation 35 Energy Generation 15 Energy Capacity 250 Matter Stores 300 Matter Capacity 300 Sight Range 21 Terrain Scan Range 16 Terrain Scan Density 10 Armor Coverage 225 Evasion (%) 44 Recoil Reduction 2 Item Schematics ----------------- None Robot Schematics ------------------ None Fabricated ------------ Nothing Repaired ---------- Nothing Alien Tech Used ----------------- None Achievements -------------- None Challenges ------------ None Game ------ Seed PersonalPowerNeutralizer Manual? 0 Play Time 00:21:08 Cumulative 555.5 hours Start 2024.11.16 @ 14:31:13 End 2024.11.16 @ 14:51:03 Sessions 1 Manual Loads 0 Difficulty Rogue Special Mode None Game No. 213 Rogue 208 Adventurer 4 Explorer 1 Win Type - Total 8 Types 5/1/0/1/0/1/0/0/0 Lore% 90 Gallery% 92 Achievement% 87 Wizard Run 0 Options --------- Layout 0 ASCII 0 Keyboard 0 Movement Numpad Keybinds 0 Fullscreen 2 Font 18/CogNarrow Map View 76x50 Zoom Use 0% Tactical HUD 1 Map Filters NONE Filters NONE Steam 1 RUN: 8bbf708b-5f35-45b3-bb45-4155c059024c